Cogmind - Beta 14 @@@ ROGUE MODE // 2024.09.04 @ 21:51:19 Player: UnifiBg Result: Destroyed by D-53 Grenadier with Mini Grenade Launcher Performance ------------- Evolutions (2) 1000 Regions Visited (4) 800 Robots Destroyed (87) 435 Value Destroyed (1974) 1974 Prototype IDs (2) 40 Alien Tech Used (0) 0 Bonus (93) 93 TOTAL SCORE: 4342 Bonus ------- High Alert Combat Kills 109 Follower Combat Kills 190 Friendly Fire -206 Cogmind --------- Core Integrity 0/550 Matter 38/300 Energy 64/265 System Corruption 0% Temperature Danger (491) Movement Rolling (95) Ox1 Location -8/Storage Parts ------- > --- POWER (1) -------- Improved Ion Engine > --- PROPULSION (3) --- Wheel Wheel Wheel > --- UTILITY (3) ------ Medium Storage Unit Hardened Light Armor Plating Hardened Light Armor Plating > --- WEAPON (4) ------- Precision Beam Rifle Heavy Assault Rifle Heavy Assault Rifle > --- INVENTORY (10) --- Heavy Ion Engine Wheel High-capacity Matter Pod (200) Compact Matter Pod (150) Mace Peak State ------------ > --- POWER ------------ Heavy Ion Engine > --- PROPULSION ------- Wheel Wheel Wheel > --- UTILITY ---------- Medium Storage Unit Hardened Light Armor Plating Hardened Light Armor Plating > --- WEAPON ----------- Precision Beam Rifle Heavy Assault Rifle Shotgun Minigun > --- INVENTORY -------- Improved Ion Engine Heavy Ion Engine Wheel High-capacity Matter Pod Compact Matter Pod Hardened Light Armor Plating Light Assault Rifle Light Assault Rifle Grenade Launcher Mace [Rating: 23] Favorites ----------- Power Heavy Ion Engine Engine Heavy Ion Engine Propulsion Wheel Wheel Wheel Utility Medium Storage Unit Device Structural Scanner Storage Medium Storage Unit Processor Signal Interpreter Protection Light Armor Plating Weapon Light Assault Rifle Energy Gun Beam Rifle Ballistic Gun Light Assault Rifle Launcher Grenade Launcher Build | -11 -10 -9 -8 -8 ------- Run | Yrd Mat Mat Mat Sto Slots Evolved 4 | . . 2 2 . Power . | . . . . . Propulsion 1 | . . . 1 . Utility 1 | . . . 1 . Weapon 2 | . . 2 . . Parts Attached 79 | 8 12 35 2 22 Power 10 | 1 2 6 . 1 Engine 10 | 1 2 6 . 1 Core . | . . . . . Reactor . | . . . . . Propulsion 14 | 2 4 3 1 4 Treads . | . . . . . Leg . | . . . . . Wheel 14 | 2 4 3 1 4 Hover . | . . . . . Flight . | . . . . . Utility 24 | 3 4 10 1 6 Device 8 | 2 2 4 . . Storage 5 | 1 2 1 . 1 Processor 1 | . . . 1 . Hackware . | . . . . . Protection 10 | . . 5 . 5 Artifact . | . . . . . Weapon 31 | 2 2 16 . 11 Energy Gun 9 | . 1 5 . 3 Energy Cannon . | . . . . . Ballistic Gun 21 | 2 1 11 . 7 Ballistic Cannon . | . . . . . Launcher 1 | . . . . 1 Special Weapon . | . . . . . Impact Weapon . | . . . . . Slashing Weapon . | . . . . . Piercing Weapon . | . . . . . Special Melee Weapon . | . . . . . Unidentified Prototypes 2 | . . 1 . 1 Parts Lost 13 | . 2 4 . 7 Power 4 | . 1 2 . 1 Propulsion . | . . . . . Utility 3 | . 1 1 . 1 Weapon 6 | . . 1 . 5 Highest Loss Streak 6 | . 1 1 . 6 To Critical Strikes . | . . . . . Average Slot Usage (%) 99 | . 99 99 100 99 Engine 11 | . 13 10 9 8 Wheel 25 | . 28 22 27 27 Device 7 | . 13 6 . . Storage 11 | . 14 11 9 9 Protection 5 | . . 4 9 16 Energy Gun 5 | . 1 8 . 4 Ballistic Gun 31 | . 26 34 36 28 Peak Build Rating 23 | 9 8 15 16 23 Average Rating 12 | 6 7 13 15 20 On Entrance 9 | . 7 8 14 16 Naked Turns . | . . . . . Heaviest Build 40 | 13 17 31 29 40 Greatest Support 30 | 20 20 20 30 30 Greatest Overweight (x) 1 | . . 1 . 1 Average Overweight (x) . | . . . . . Largest Inventory Capacity 10 | 8 10 10 10 10 Average Capacity 9 | 7 9 10 10 10 Most Carried 10 | 5 10 10 9 10 Average Carried 9 | 2 8 9 8 9 Final Capacity 10 | 8 10 10 10 10 Final Carried 10 | 5 10 10 9 5 Class Distribution -------------------- 33% | Mutant 32% | Scavenger-Tank 21% | Scavenger-Skirmisher 8% | Commander-Tank Dominant Class ---------------- Mutant | -10/Materials Scavenger-Skirmisher | -9/Materials Scavenger-Tank | -8/Materials Scavenger-Tank | -8/Storage Resources | -11 -10 -9 -8 -8 ----------- Run | Yrd Mat Mat Mat Sto Matter Collected 2349 | 293 557 683 . 816 Remotely . | . . . . . Salvage Created 3324 | 101 645 1658 13 907 Parts 186 | 10 37 76 2 61 Haulers Intercepted 5 | . 1 3 . 1 Recyclers Shooed 6 | . 3 3 . . Parts Field Recycled . | . . . . . Retrieved Matter . | . . . . . Parts Self-Destructed . | . . . . . Prevented . | . . . . . Kills | -11 -10 -9 -8 -8 ------- Run | Yrd Mat Mat Mat Sto Combat Hostiles Destroyed 55 | . 12 30 . 13 Guns 54 | . 12 30 . 12 AOE 1 | . . . . 1 Classes Destroyed 12 | 2 4 3 . 3 Worker 2 | . . . . 2 Builder 5 | . . 2 . 3 Tunneler 2 | 2 . . . . Hauler 5 | . 1 3 . 1 Recycler 9 | 1 2 5 . 1 Operator 5 | . 1 . 1 3 Watcher 3 | . . 3 . . Swarmer 17 | . 3 14 . . Grunt 24 | . 9 8 . 7 Duelist 2 | . . . . 2 Protector 1 | . . . . 1 Sentry 12 | . . 8 . 4 Best Kill Streak 6 | 1 3 6 1 6 Combat Bots Only 6 | . 3 6 . 6 Max Kills in Single Turn 2 | 1 1 2 1 2 Gunslinging 1 | . . 1 . . Exploded 1 | . . . . 1 Melee . | . . . . . Uniques/NPCs Destroyed . | . . . . . Combat | -11 -10 -9 -8 -8 -------- Run | Yrd Mat Mat Mat Sto Hostile Shots Fired 245 | . 59 113 . 73 Missed 52 | . 15 27 . 10 Damage Taken 3387 | . 508 981 . 1898 Core 842 | . 116 176 . 550 Absorbed by Shields . | . . . . . Core Remaining (%) 69 | 100 53 56 . . Volleys Fired 235 | 13 73 90 6 53 Largest 4 | 2 2 4 4 4 Hottest 152 | 40 70 152 86 132 Shots Fired 716 | 26 146 341 24 179 Gun 703 | 26 146 341 24 166 Cannon . | . . . . . Launcher 13 | . . . . 13 Special . | . . . . . Kinetic 592 | 26 133 256 24 153 Thermal 111 | . 13 85 . 13 Explosive 13 | . . . . 13 Electromagnetic . | . . . . . Robot Hit Streak 18 | 5 15 12 4 18 Robot Miss Streak 7 | 3 3 7 4 7 Penetration Max . | . . . . . Secondary Targets 5 | . . 3 . 2 Max Gunslinging Chain 1 | . . 1 . 1 Shots Hit Robots 418 | 15 101 186 10 106 Core Hits 178 | 6 39 75 3 55 Critical Kills . | . . . . . Critical Parts Destroyed 8 | . . 3 . 5 Critical Strikes 17 | . 2 10 . 5 Burn 9 | . 2 7 . . Destroy 8 | . . 3 . 5 Melee Attacks . | . . . . . Impact . | . . . . . Slashing . | . . . . . Piercing . | . . . . . Sneak Attacks . | . . . . . Combat Hostiles . | . . . . . Follow-up Attacks . | . . . . . Damage Inflicted 5178 | 122 830 2173 123 1930 Guns 4855 | 122 830 2173 123 1607 Cannons . | . . . . . Explosions 323 | . . . . 323 Melee . | . . . . . Ramming . | . . . . . Kinetic 3674 | 122 741 1282 123 1406 Thermal 1181 | . 89 891 . 201 Explosive 323 | . . . . 323 Electromagnetic . | . . . . . Impact . | . . . . . Slashing . | . . . . . Piercing . | . . . . . Highest Corruption . | . . . . . Average Corruption . | . . . . . Corruption Purged . | . . . . . Corruption Blocked . | . . . . . Overload Shots . | . . . . . Overflow Damage . | . . . . . Projectiles . | . . . . . Explosions . | . . . . . Melee . | . . . . . Knockbacks . | . . . . . Impact . | . . . . . Kinetic . | . . . . . Secondary . | . . . . . Self-Inflicted Damage 10 | . . . . 10 Shots 1 | . . . . 1 Rammed . | . . . . . Targets Rammed . | . . . . . Kicked . | . . . . . Crushed . | . . . . . Highest Temperature 617 | . 226 429 50 617 Average Temperature 123 | . 55 113 21 175 Received Heat Transfer 1026 | . 303 300 . 423 Effects 27 | . . 6 . 21 Shutdowns 3 | . . . . 3 Energy Bleed 4 | . . 1 . 3 Interference 7 | . . 4 . 3 Matter Decay 3 | . . . . 3 Short Circuit 2 | . . . . 2 Damage (minor) 3 | . . 1 . 2 Damage (core) 5 | . . . . 5 Siege Activations . | . . . . . Robots Corrupted . | . . . . . Combat Hostiles . | . . . . . Parts Fried . | . . . . . Impact Corruptions . | . . . . . Robots Melted . | . . . . . Combat Hostiles . | . . . . . Parts Melted 12 | . 2 9 . 1 Heat Transferred 3700 | . 407 2849 . 444 Parts Sabotaged . | . . . . . Parts Stolen . | . . . . . Parts Stripped . | . . . . . Power Chain Reactions . | . . . . . Alert | -11 -10 -9 -8 -8 ------- Run | Yrd Mat Mat Mat Sto Peak Influence 589 | 15 149 506 127 589 Initial 77 | . 9 49 77 53 Average 207 | 7 65 281 109 309 Maximum Alert Level 2 | . . 2 . 2 Low Security (%) 52 | 100 100 25 100 26 Level 1 35 | . . 60 . 44 Level 2 12 | . . 14 . 29 Level 3 . | . . . . . Level 4 . | . . . . . Level 5 . | . . . . . High Security . | . . . . . Max Security . | . . . . . Squads Dispatched 7 | . 2 1 1 3 Investigation . | . . . . . Extermination . | . . . . . Reinforcement 5 | . 2 1 1 1 Assault 2 | . . . . 2 Garrison . | . . . . . Intercept . | . . . . . Searches Triggered . | . . . . . Construction Impeded . | . . . . . Haulers Reinforced . | . . . . . Active Scanning Responses . | . . . . . Cargo Convoy Interrupts . | . . . . . Stealth | -11 -10 -9 -8 -8 --------- Run | Yrd Mat Mat Mat Sto Distress Signals 11 | . 2 6 1 2 Communications Jammed . | . . . . . Distress Signals . | . . . . . Times Spotted 105 | . 24 48 4 29 Peak Tracking Total 9 | . 5 5 3 9 Tactical Retreats 7 | . 1 3 1 2 Traps | -11 -10 -9 -8 -8 ------- Run | Yrd Mat Mat Mat Sto Traps Triggered 1 | . . 1 . . Indirectly . | . . . . . Trap Hack Attempts . | . . . . . Triggered . | . . . . . Disarmed . | . . . . . Reprogrammed . | . . . . . Reused . | . . . . . Traps Extracted . | . . . . . Installed . | . . . . . Triggered . | . . . . . Machines | -11 -10 -9 -8 -8 ---------- Run | Yrd Mat Mat Mat Sto Machines Disabled 2 | . . 2 . . Max in Single Turn 1 | . . 1 . . Machines Repaired . | . . . . . Machines Dismantled . | . . . . . Machines Sabotaged . | . . . . . Overloaded Fab Kills . | . . . . . Hacking | -11 -10 -9 -8 -8 --------- Run | Yrd Mat Mat Mat Sto Machines Accessed 17 | . 6 7 . 4 Terminals 17 | . 6 7 . 4 Fabricators . | . . . . . Repair Stations . | . . . . . Recycling Units . | . . . . . Scanalyzers . | . . . . . Garrison Access . | . . . . . Total Hacks 60 | . 21 29 . 10 Successful 32 | . 13 14 . 5 Failed 28 | . 8 15 . 5 Catastrophic 5 | . 3 2 . . Database Lockouts . | . . . . . Manual 57 | . 22 29 . 6 Terminals 60 | . 21 29 . 10 Fabricators . | . . . . . Repair Stations . | . . . . . Recycling Units . | . . . . . Scanalyzers . | . . . . . Garrison Access . | . . . . . Terminal Hacks 8 | . 4 3 . 1 Open Door 1 | . . . . 1 Unreport Threat 6 | . 3 3 . . Locate Traps 1 | . 1 . . . Fabricator Hacks . | . . . . . Repair Station Hacks . | . . . . . Recycling Unit Hacks . | . . . . . Scanalyzer . | . . . . . Garrison Access Hacks . | . . . . . Unauthorized Hacks 24 | . 9 11 . 4 Terminals 24 | . 9 11 . 4 Track 3 | . 1 1 . 1 Botnet 6 | . 2 2 . 2 Operators 5 | . 1 3 . 1 Skim 10 | . 5 5 . . Fabricators . | . . . . . Repair Stations . | . . . . . Recycling Units . | . . . . . Scanalyzers . | . . . . . Garrison Access . | . . . . . Data Cores Recovered . | . . . . . Used . | . . . . . Hacking Detections 17 | . 6 7 . 4 Full Trace Events . | . . . . . Feedback Events . | . . . . . Feedback Blocked . | . . . . . Robot Schematics Acquired . | . . . . . Robots Built . | . . . . . Authchips . | . . . . . Time . | . . . . . Total Robot Build Rating . | . . . . . Part Schematics Acquired . | . . . . . Parts Built . | . . . . . Authchips . | . . . . . Time . | . . . . . Total Part Build Rating . | . . . . . Parts Repaired . | . . . . . Time . | . . . . . Parts Recycled . | . . . . . Recycled Matter . | . . . . . Retrieved Matter . | . . . . . Retrieved Components . | . . . . . Parts Scanalyzed . | . . . . . Part Schematics Acquired . | . . . . . Parts Damaged . | . . . . . Bothacking | -11 -10 -9 -8 -8 ------------ Run | Yrd Mat Mat Mat Sto Used RIF Installer . | . . . . . Robots Hacked . | . . . . . Non-combat . | . . . . . Combat . | . . . . . Robot Hacks Applied . | . . . . . Relay Couplers Released . | . . . . . Fabnet Peak Effective % . | . . . . . Robots Rewired . | . . . . . Allies Hacked . | . . . . . Hacks Repelled . | . . . . . Allies | -11 -10 -9 -8 -8 -------- Run | Yrd Mat Mat Mat Sto Total Allies 12 | . . . . 12 Largest Group 10 | . . . . 10 Highest-Rated Group 203 | . . . . 203 Highest-Rated Ally 31 | . . . . 31 Total Orders . | . . . . . Ally Attacks 61 | . . . . 61 Total Damage 835 | . . . . 835 Kills 9 | . . . . 9 Allies Corrupted . | . . . . . Allies Melted . | . . . . . Intel | -11 -10 -9 -8 -8 ------- Run | Yrd Mat Mat Mat Sto Robot Analysis Total . | . . . . . Derelict Logs Recovered . | . . . . . Drone Launches . | . . . . . Drone Recoveries . | . . . . . Exploration | -11 -10 -9 -8 -8 ------------- Run | Yrd Mat Mat Mat Sto Turns Passed 3728 | 117 1120 1644 133 714 Spaces Moved 2711 | 84 838 1227 82 480 Core 3 | 3 . . . . Treads . | . . . . . Legs . | . . . . . Wheels 2708 | 81 838 1227 82 480 Hover . | . . . . . Flight . | . . . . . Fastest Speed 50 | 50 80 80 80 80 Average Speed 87 | 78 80 91 80 94 Slowest Speed 95 | 80 80 95 80 95 Overloaded Moves . | . . . . . Propulsion Burnouts . | . . . . . Robots Hopped . | . . . . . Cave-ins Triggered . | . . . . . Exploration Rate (%) 48 | 4 96 77 14 51 Regions Visited 4 Branch Regions 1 Pre-discovered Areas 5 | . 1 4 . . Known Exits Taken 2 | . . 1 1 . Unknown Exits Taken 2 | 1 1 . . . Scrap Searched . | . . . . . Spaces Dug . | . . . . . Terrain Destroyed 72 | . . . . 72 Melee . | . . . . . Projectile . | . . . . . AOE 72 | . . . . 72 Terrain Rammed . | . . . . . Walls Destroyed . | . . . . . Machines Disabled . | . . . . . Actions | -11 -10 -9 -8 -8 --------- Run | Yrd Mat Mat Mat Sto Total 3647 | 109 1171 1588 136 643 Wait 519 | . 228 184 46 61 Move 2707 | 83 837 1226 81 480 Hop . | . . . . . Pick Up 39 | 5 10 16 1 7 Fast Attach 22 | 7 2 11 . 2 Attach 14 | . 1 5 2 6 Detach 2 | . . . . 2 Swap 44 | 1 9 20 . 14 Drop 62 | . 11 36 . 15 Fire 235 | 13 73 90 6 53 Melee . | . . . . . Ram . | . . . . . Kick . | . . . . . Crush . | . . . . . Escape Stasis . | . . . . . Rewire 3 | . . . . 3 Trap . | . . . . . Miscellaneous . | . . . . . Route ------- -11/Scrapyard -10/Materials (discovered 4 exits: *Mat x3 / [*Min]) -9/Materials (discovered 4 exits: *Mat x3 / *Min) -8/Materials -8/Storage (discovered 1 exit: [*Fac]) History --------- Turn | Location | Event 10 | -11/Scrapyard | Discovered new exit (range 16) 118 | -11/Scrapyard | Entered Materials 309 | -10/Materials | Build established: Mutant 484 | -10/Materials | Discovered new exit (range 3) 593 | -10/Materials | Discovered new exit (range 13) 724 | -10/Materials | Discovered new exit (range 5) 805 | -10/Materials | Discovered new exit (range 8) 996 | -10/Materials | Learned 2 Mines zone layouts 1051 | -10/Materials | Learned 4 Recycling zone layouts 1097 | -10/Materials | Learned Storage trap positions 1133 | -10/Materials | Learned Storage stockpile data 1176 | -10/Materials | Learned location of Mines (-10) 1238 | -10/Materials | Entered another Materials area 1238 | -9/Materials | Evolved 2 slots: Weapon x2 1239 | -9/Materials | Identified exit to Materials 1239 | -9/Materials | Identified exit to Mines 1908 | -9/Materials | Build established: Scavenger-Skirmisher 2229 | -9/Materials | Learned location of Zion (-7) 2341 | -9/Materials | Learned 4 Recycling zone layouts 2411 | -9/Materials | Learned Storage security intel 2428 | -9/Materials | Learned location of Storage (-8) 2486 | -9/Materials | Learned Storage stockpile data 2566 | -9/Materials | Build established: Scavenger-Tank 2882 | -9/Materials | Entered another Materials area 2882 | -8/Materials | Evolved 2 slots: Propulsion x1, Utility x1 2883 | -8/Materials | Identified exit to Storage 3015 | -8/Materials | Entered Storage 3016 | -8/Storage | Loaded intel: 26 trap records 3339 | -8/Storage | Assisted by bots powering up and referring to "LRC-V3" 3580 | -8/Storage | Discovered new exit (range 15) 3631 | -8/Storage | Met a pair of Derelict thieves 3646 | -8/Storage | Build established: Commander-Tank 3688 | -8/Storage | Lost 10 allies 3709 | -8/Storage | Core integrity fell below 50% 3719 | -8/Storage | Core integrity fell below 20% 3729 | -8/Storage | Destroyed by D-53 Grenadier with Mini Grenade Launcher Last Messages --------------- (Destroy). 03714_ Destroyed Cmb. Airjet. 03715_ Overheating: Core damaged (-77). 03716_ Overheating: Energy bleed (-70). 03717_ Minigun broken. 03717_ Overheating: Short circuit. 03717_ Shotgun destroyed. 03719_ Overheating: Core damaged (-82). 03719_ Hvy. Ion Engine destroyed. 03720_ Overheating: Energy bleed (-25). 03722_ U-05 Engineer builds a Wall. 03723_ Power failure, Imp. Ion Engine shutdown. 03723_ Overheating: System interference. 03723_ Prc. Beam Rifle temporarily disabled. 03723_ Broken Minigun destroyed. 03725_ Overheating: Energy bleed (-14). 03725_ G-50 Soldier destroyed. 03726_ Overheating: Hvy. Assault Rifle damaged (-8). 03727_ D-53 Grenadier destroyed. Map ----- +----------------------------------------------------+ | ?????????#T # ###### ## # """ #? | | ?????????## + #????###" ""#### # #? | | ??????????##### #?????# "R""#################? | | ?????????????## =%####### """ ###????????????? | | ?????????????# ##### ######???????? | | ?????????????# ! ! * ! #???????? | | ?????????????# % [ ! #???????? | | ?????????????# = #???????? | | ?????????????# ######## # #######???????? | | ?????????????############# #????????????? | | ?????????????????????????# #????????????? | | ?????????????????????????# """" #????????????? | | ?????????????????????????# "??"" #????????????? | | ?????????????????????????# "???"" #????????????? | | ?????????????????????????# ""???" #????????????? | | ?????????????????????????# ""??" #????????????? | | ?????????????????????????# """" #????????????? | | ?????????????????????????# #????????????? | | ?????????????????????????#####+#########???????? | | ????????????????????????????# ? | | ???????????????????????????## ########???????? | | ??????????????????########?# ##?????????????? | | ??????????????????#= = =#?## #?????^???????? | | ??????????????????# = ==#?## #?????????????? | | ??????????????????#= #### #?????????????? | | ??????????????????#* @ ##|#![ #??^??????????? | | ??????????????## ####"d"## #=% #??^^?????????? | | ?????????????## # #% ##![ ##?????????????? | | ?????????????# [%=[ #[% ##????????????? | | ???????######## ####= %=" #????????????? | | ???????# " " ##????????????? | | ???????#%<" =% #????????????? | | ???????# " ! % ##????????????? | | ???????######"# # # ## #?????????????? | | ?????????# T########?????????????? | | ?????????# """ ###" "##????????????????????? | | ?????????# """ ""##===#?????????????????????? | | ????????## """ T"##===#?????????????????????? | | ????????#" ""######?????????????????????? | | ????????#T """ ###??????????????????????????? | | ????????#" """ #????????????????????????????? | | ????????## """ #????????????????????????????? | | ?????????# #????????????????????????????? | | ?????????##########????????????????????????????? | | | | | | | | | | | | | +----------------------------------------------------+ Best States ------------- Heat Dissipation 31 Energy Generation 14 Energy Capacity 280 Matter Stores 300 Matter Capacity 300 Sight Range 16 Robot Scan Range 14 Terrain Scan Range 16 Terrain Scan Density 10 Armor Coverage 300 Evasion (%) 44 Item Schematics ----------------- None Robot Schematics ------------------ None Fabricated ------------ Nothing Alien Tech Used ----------------- None Achievements -------------- None Challenges ------------ None Game ------ Seed BombLegLoader Manual? 0 Play Time 00:43:03 Cumulative 27.5 hours Start 2024.09.04 @ 21:08:56 End 2024.09.04 @ 21:51:19 Sessions 1 Manual Loads 0 Difficulty Rogue Special Mode None Game No. 20 Rogue 7 Adventurer 13 Explorer 0 Win Type - Total 0 Types 0/0/0/0/0/0/0/0/0 Lore% 12 Gallery% 30 Achievement% 22 Wizard Run 0 Options --------- Layout 2 ASCII 0 Keyboard 1 Movement Numpad Keybinds 0 Fullscreen 1 Font 48/Smallcaps Map View 50x44 Zoom Use 0% Tactical HUD 1 Map Filters NONE Filters NONE Steam 1 RUN: 859807c5-33d4-4ad0-95bb-8a355525d8d6